bitfinex-derivatives/quotes_ETHF0:USTF0_20241105
["timestamp","ask_amount","ask_price","bid_price","bid_amount"]
[1730839103808,1.56353,2431.3,2430.8,1.6738]
[1730839104101,1.1522,2431.3,2430.9,0.41137]
[1730839104303,3.2078,2431.4,2430.8,1.2624]
[1730839104503,4.77974,2431.8,2431.0,6.36843073]
[1730839104704,4.77974,2431.8,2431.4,0.41129]
[1730839105003,3.61899,2432.1,2431.7,0.41125]
[1730839105202,3.2078,2432.1,2431.7,0.41125]
[1730839105398,3.2078,2432.1,2431.7,0.41124]
[1730839105598,3.61898,2432.1,2431.7,0.41124]
[1730839106003,3.2078,2432.1,2431.6,3.16063073]
[1730839106201,3.2078,2432.1,2432.0,0.4112]
[1730839106596,40.8,2432.5,2431.6,3.16063073]
[1730839106597,3.61893,2432.4,2431.6,3.16063073]
[1730839106802,3.2078,2432.4,2432.2,0.41116]
[1730839106998,3.2078,2432.4,2432.1,0.41117]
[1730839107198,3.2078,2432.4,2431.9,3.16063073]
[1730839107406,3.2078,2432.4,2432.1,0.41118]
[1730839108203,1.9939,2432.6,2432.1,3.2078]
[1730839108510,0.808,2433.0,2432.1,3.2078]
[1730839108511,3.2078,2433.0,2432.6,0.4111]
[1730839108704,0.41105,2432.9,2432.6,0.4111]
[1730839108908,0.41105,2432.9,2432.4,3.2078]
[1730839109107,0.41105,2432.9,2432.5,0.41111]
[1730839109304,3.61884,2433.0,2432.6,0.41109]
[1730839109502,0.41105,2432.9,2432.6,0.41109]
[1730839109808,3.2078,2433.0,2432.4,3.2078]
[1730839110005,3.2078,2433.0,2432.5,0.41112]
[1730839110205,3.2078,2433.0,2432.6,0.41108]
[1730839110506,3.61884,2433.0,2432.7,0.41108]
[1730839111713,3.61884,2433.0,2432.6,0.41109]
[1730839112419,3.2078,2433.0,2432.7,0.41108]
[1730839112606,3.61883,2433.0,2432.7,0.41108]
[1730839113410,3.61883,2433.0,2432.4,3.2078]
[1730839113609,3.61883,2433.0,2432.6,0.41109]
[1730839113811,3.2078,2433.0,2432.4,3.2078]
[1730839114002,3.2078,2433.0,2432.9,0.41105]
[1730839116213,40.8,2433.4,2432.7,0.8524]
[1730839116214,44.0078,2433.4,2433.3,0.41098]
[1730839116512,3.2078,2433.8,2433.3,3.2078]
[1730839116807,0.41091,2433.7,2433.0,6.36843073]
[1730839117015,0.41095,2433.6,2433.3,0.41098]
[1730839117427,0.41093,2433.6,2433.0,6.36843073]
[1730839117615,1.27132,2433.7,2433.0,6.5587919]
[1730839117808,0.41093,2433.6,2433.0,6.5587919]
[1730839118108,0.41093,2433.6,2433.3,0.41097]
[1730839118713,0.8604,2433.7,2433.0,6.5587919]
[1730839119014,3.2078,2433.5,2433.0,3.2078]
[1730839119218,0.41099,2433.3,2432.9,0.41105]
[1730839119408,0.41099,2433.3,2433.1,0.41101]
[1730839119712,3.2078,2433.5,2432.8,4.8273]
[1730839119906,3.2078,2433.5,2432.8,5.01782881]
[1730839120110,3.2078,2433.5,2433.4,0.41096]
[1730839120711,0.41093,2433.6,2433.1,3.2078]
[1730839120906,0.41093,2433.6,2433.4,0.41096]
[1730839121416,0.8604,2433.7,2433.1,3.2078]
[1730839121617,0.41098,2433.3,2433.1,3.61881]
[1730839121814,3.2078,2433.6,2433.2,0.41099]
[1730839121815,0.41097,2433.4,2433.2,0.41099]
[1730839122316,3.2078,2434.2,2433.3,3.16063073]
[1730839122516,0.8379,2434.2,2434.1,0.41085]
[1730839123117,0.8081,2434.6,2434.1,0.41085]
[1730839123118,6.09698186,2435.4,2434.1,4.108]
[1730839123332,0.41074,2434.8,2434.5,0.41077]
[1730839123531,3.2078,2435.1,2434.3,2.56394289]
[1730839123817,0.41078,2434.5,2434.2,3.61862]
[1730839124310,0.8875,2434.7,2434.2,3.61862]
[1730839124515,0.41077,2434.6,2434.3,0.41081]
[1730839124915,0.8186,2434.5,2434.3,0.41081]
[1730839125221,0.8186,2434.5,2434.4,0.41079]
[1730839125420,0.8186,2434.5,2434.3,0.4108]
[1730839125617,0.8186,2434.5,2434.2,3.2078]
[1730839125818,0.8186,2434.5,2434.4,0.41079]
[1730839126017,0.8186,2434.5,2434.2,3.2078]
[1730839126218,0.8186,2434.5,2433.9,3.2078]
[1730839126420,0.41082,2434.3,2434.0,0.41085]
[1730839127218,0.41081,2434.4,2434.1,0.41084]
[1730839127412,4.0264,2434.5,2433.9,3.2078]
[1730839127613,0.41081,2434.4,2434.0,0.41086]
[1730839128319,0.8186,2434.5,2434.0,3.2078]
[1730839128521,0.4108,2434.4,2434.1,0.41084]
[1730839128815,0.41082,2434.3,2434.0,3.61865]
[1730839129019,0.8186,2434.5,2434.0,3.2078]
[1730839129418,1.6829,2434.5,2434.0,3.2078]
[1730839129620,1.6829,2434.5,2434.3,0.41081]
[1730839130325,1.6829,2434.5,2434.4,0.41079]
[1730839130629,1.6829,2434.5,2434.3,0.4108]
[1730839132125,1.6829,2434.5,2434.0,3.2078]
[1730839132126,1.6829,2434.5,2434.4,0.41079]
[1730839133220,1.6829,2434.5,2433.8,1.86592]
[1730839133221,1.6829,2434.5,2434.3,0.4108]
[1730839133719,1.6829,2434.5,2434.4,0.41079]
[1730839134529,0.8186,2434.5,2434.4,0.41079]
[1730839134714,0.8186,2434.5,2434.4,3.61859]
[1730839137317,0.41072,2434.9,2434.7,0.41073]
[1730839137513,0.41072,2434.9,2434.8,0.41073]
[1730839137514,0.825,2434.9,2434.8,0.41073]
[1730839138018,3.22297,2435.8,2434.8,4.1072]
[1730839138224,1.26852,2435.5,2435.0,3.2078]
[1730839138426,1.26852,2435.5,2435.1,0.41068]
[1730839138728,1.26852,2435.5,2435.0,3.2078]
[1730839138729,1.26852,2435.5,2435.2,0.41065]
[1730839138922,0.41063,2435.4,2435.2,0.41065]
[1730839139425,0.41063,2435.4,2435.0,3.2078]
[1730839139617,0.41063,2435.4,2435.1,0.41067]
[1730839139820,0.8579,2435.5,2435.0,3.2078]
[1730839140016,3.2078,2435.2,2434.8,0.8639]
[1730839140228,3.2078,2435.2,2434.7,3.1559238]
[1730839140423,1.25738,2435.1,2434.8,0.41072]
[1730839141015,0.7926,2435.0,2434.8,0.41072]
[1730839141318,0.7926,2435.0,2434.7,3.1559238]
[1730839141521,0.7926,2435.0,2434.8,0.41072]
[1730839142022,0.7926,2435.0,2434.7,3.1559238]
[1730839142231,0.7926,2435.0,2434.9,0.41071]
[1730839142625,0.7926,2435.0,2434.8,0.41072]
[1730839142626,1.20329,2435.0,2434.8,0.41072]
[1730839142819,0.7926,2435.0,2434.9,0.41071]
[1730839143014,0.8467,2435.1,2435.0,0.41069]
[1730839143428,3.2078,2435.3,2435.2,0.41066]
[1730839145128,3.2078,2435.3,2435.2,4.51706]
[1730839145523,3.61844,2435.3,2435.0,0.8599]
[1730839145829,3.61844,2435.3,2435.2,0.41066]
[1730839146027,3.2078,2435.3,2435.2,0.41066]
[1730839146418,3.61844,2435.3,2435.2,0.41066]
[1730839146725,0.41066,2435.2,2435.1,0.41067]
[1730839146920,0.41066,2435.2,2435.0,0.41068]
[1730839147116,0.41069,2435.1,2434.9,3.2078]
[1730839147330,0.41069,2435.0,2434.9,3.2078]
[1730839147525,3.2078,2435.3,2434.8,0.41072]
[1730839147726,0.4107,2435.0,2434.8,0.41073]
[1730839148129,1.81915,2435.5,2434.7,4.8141238]
[1730839148428,0.7926,2435.5,2434.7,4.8141238]
[1730839148624,0.7926,2435.5,2434.9,3.2078]
[1730839148934,0.7926,2435.5,2435.0,0.41068]
[1730839148935,0.41066,2435.2,2435.0,0.41068]
[1730839149426,0.41066,2435.2,2435.0,0.41069]
[1730839149935,41.21066,2435.2,2435.0,0.41069]
[1730839152129,40.8,2435.2,2434.9,3.2078]
[1730839152835,0.41065,2435.3,2434.9,3.2078]
[1730839153034,0.41067,2435.2,2435.1,0.41067]
[1730839154024,41.21065,2435.3,2435.1,0.41067]
[1730839154333,0.41066,2435.2,2435.1,0.41067]
[1730839154529,0.41066,2435.2,2434.9,4.0405]
[1730839154729,40.8,2435.2,2434.9,4.0405]
[1730839154943,0.41066,2435.2,2435.1,0.41068]
[1730839155734,0.4107,2435.0,2434.8,0.41071]
[1730839155933,40.8,2435.3,2434.8,0.41071]
[1730839155934,1.25057,2435.2,2434.8,2.56381166]
[1730839156330,0.41063,2435.4,2435.3,0.41064]
[1730839156530,0.41063,2435.4,2435.3,2.97445166]
[1730839157037,1.20322,2435.5,2435.3,2.97445166]
[1730839157332,0.8399,2435.6,2435.5,0.41061]
[1730839157534,0.8399,2435.6,2435.5,2.56381166]
[1730839158033,0.8399,2435.6,2435.5,2.97442166]
[1730839158234,1.25049,2435.6,2435.5,2.56381166]
[1730839158627,0.8399,2435.6,2435.5,2.56381166]
[1730839158829,0.8399,2435.6,2435.5,2.97442166]
[1730839159741,0.8399,2435.6,2435.5,2.56381166]
[1730839159742,1.25049,2435.6,2435.5,2.56381166]
[1730839159938,0.41062,2435.5,2435.3,6.18225166]
[1730839160142,0.41062,2435.5,2435.3,2.97445166]
[1730839160938,0.867,2435.4,2435.3,2.97445166]
[1730839161235,0.867,2435.4,2434.9,1.02677]
[1730839161236,4.0748,2435.4,2434.9,0.41071]
[1730839161430,4.0748,2435.4,2434.9,2.56381166]
[1730839161635,0.867,2435.4,2434.9,5.77161166]
[1730839162027,0.867,2435.4,2435.0,0.41069]
[1730839162028,1.27763,2435.4,2435.0,0.41069]
[1730839162229,0.41065,2435.3,2435.0,0.41069]
[1730839162435,0.867,2435.4,2434.9,2.97451166]
[1730839162741,0.41068,2435.1,2434.9,2.97451166]
[1730839162942,0.8085,2435.0,2434.9,2.56381166]
[1730839163138,0.8085,2435.0,2434.9,2.97452166]
[1730839164239,1.27764,2435.4,2434.9,9.87881166]
[1730839164443,0.41065,2435.3,2435.1,0.41067]
[1730839164630,0.41065,2435.3,2434.9,5.77161166]
[1730839164631,0.41068,2435.1,2434.9,6.18231166]
[1730839165039,0.867,2435.4,2434.9,5.77161166]
[1730839165239,0.867,2435.4,2435.2,2.56381166]
[1730839165438,0.867,2435.4,2435.3,0.41064]
[1730839165945,0.7633,2435.6,2435.5,0.41061]
[1730839166742,0.7633,2435.6,2435.4,2.97443166]
[1730839166743,0.41061,2435.5,2435.4,2.97443166]
[1730839167131,0.7633,2435.6,2435.4,2.97443166]
[1730839167132,1.1739,2435.6,2435.4,2.97443166]
[1730839167637,0.7633,2435.6,2435.5,0.41061]
[1730839168043,0.7633,2435.6,2435.4,2.56381166]
[1730839168241,0.41061,2435.5,2435.4,2.56381166]
[1730839168436,1.17391,2435.6,2435.4,2.97443166]
[1730839168841,1.17391,2435.6,2435.4,2.97442166]
[1730839169345,0.8432,2436.0,2435.5,9.87721166]
[1730839169647,0.8432,2436.0,2435.9,2.97435166]
[1730839169850,0.8432,2436.0,2435.9,2.56381166]
[1730839170041,0.8432,2436.0,2435.9,2.97435166]
[1730839170448,0.7582,2436.1,2435.9,2.97434166]
[1730839171044,3.2078,2436.2,2435.9,2.56381166]
[1730839171243,2.00026991,2436.4,2436.1,0.4105]
[1730839171442,0.41046,2436.4,2436.1,0.4105]
[1730839171649,0.41048,2436.3,2436.0,0.41052]
[1730839171850,2.00027991,2436.4,2436.1,0.41049]
[1730839172054,1.58980991,2436.4,2436.2,0.41048]
[1730839172252,1.58980991,2436.4,2436.3,0.41047]
[1730839172456,5.53490991,2436.5,2436.2,2.97430166]
[1730839172657,5.94535991,2436.5,2436.2,2.97430166]
[1730839172861,1.58980991,2436.4,2436.2,2.56381166]
[1730839173056,5.53490991,2436.5,2436.3,0.41047]
[1730839173253,5.53490991,2436.5,2436.2,2.56381166]
[1730839173663,5.53490991,2436.5,2436.3,0.41047]
[1730839174552,5.53490991,2436.5,2436.2,2.56381166]
[1730839174747,5.94535991,2436.5,2436.2,2.97429166]
[1730839175053,5.94534991,2436.5,2436.3,0.41047]
[1730839175557,4.35554,2436.5,2436.3,0.41047]
[1730839175857,0.41046,2436.4,2436.2,2.56381166]
[1730839176165,5.94535991,2436.5,2436.2,2.97430166]
[1730839176771,5.94535991,2436.5,2436.3,0.41047]
[1730839177359,4.35555,2436.5,2436.2,2.56381166]
[1730839177564,5.94535991,2436.5,2436.2,2.56381166]
[1730839178952,5.94535991,2436.5,2436.3,0.41047]
[1730839179460,5.53490991,2436.5,2436.2,2.56381166]
[1730839179655,0.41047,2436.4,2436.2,2.56381166]
[1730839179857,0.41047,2436.4,2436.2,2.97429166]
[1730839180057,5.53490991,2436.5,2436.2,2.56381166]
[1730839180368,0.7373,2436.5,2436.4,6.18207166]
[1730839180559,0.7742,2436.7,2436.6,0.41042]
[1730839180755,1.5268,2436.7,2436.6,0.41042]
[1730839181157,1.5268,2436.7,2436.4,5.77161166]
[1730839181360,0.41043,2436.6,2436.4,6.18207166]
[1730839181563,0.41043,2436.6,2436.4,5.77161166]
[1730839181760,1.5268,2436.7,2436.4,5.77161166]
[1730839181956,0.41044,2436.5,2436.4,3.2078]
[1730839182965,2.01748986,2436.5,2436.4,3.2078]
[1730839183165,0.41044,2436.5,2436.4,3.2078]
[1730839185372,1.60704986,2436.6,2436.4,3.2078]
[1730839185675,0.41044,2436.5,2436.4,3.2078]
[1730839186062,3.2078,2436.5,2436.2,2.97429166]
[1730839186274,0.41047,2436.4,2436.2,2.56381166]
[1730839186474,0.41047,2436.3,2436.2,2.56381166]
[1730839186873,0.41047,2436.4,2436.2,2.97429166]
[1730839187266,0.41046,2436.4,2436.2,2.56381166]
[1730839187467,0.41047,2436.3,2436.2,2.56381166]
[1730839187974,0.41047,2436.4,2436.2,2.56381166]
[1730839188171,0.41046,2436.4,2436.2,2.56381166]
[1730839188679,0.7282,2436.3,2436.2,2.56381166]
[1730839188878,1.13867,2436.3,2436.2,2.56381166]
[1730839189976,8.56283071,2436.3,2435.6,5.97861166]
[1730839190174,0.41052,2436.0,2435.9,2.56381166]
[1730839190680,2.01756986,2436.0,2435.9,2.56381166]
[1730839192485,0.41052,2436.0,2435.9,2.56381166]
[1730839192779,1.60704649,2436.0,2435.9,2.97435166]
[1730839192975,1.60704649,2436.1,2435.9,2.97435166]
[1730839193169,46.36954649,2436.2,2435.9,2.56381166]
[1730839193474,1.60704649,2436.1,2436.0,0.41052]
[1730839193777,46.36954649,2436.2,2435.9,2.97434166]
[1730839193977,0.41058,2435.7,2435.6,3.2078]
[1730839194171,0.41055,2435.9,2435.7,0.41057]
[1730839194373,1.60704649,2435.9,2435.6,3.2078]
[1730839194679,2.32864649,2435.9,2435.8,2.97437166]
[1730839194877,6.84478649,2435.9,2435.8,2.56381166]
[1730839195374,2.73918649,2435.9,2435.8,2.56381166]
[1730839197173,1.13214,2435.9,2435.8,2.56381166]
[1730839197374,0.4106,2435.6,2435.4,2.97443166]
[1730839197574,2.01888183,2435.6,2435.4,2.97443166]
[1730839197786,1.60828183,2435.5,2435.4,2.97443166]
[1730839198285,2.80848183,2435.6,2435.4,2.56381166]
[1730839198481,4.1056,2435.5,2434.8,3.2078]
[1730839198779,4.1056,2435.5,2434.8,6.18234166]
[1730839198780,0.41067,2435.2,2434.8,6.18234166]
[1730839198979,2.39844706,2435.1,2435.0,2.56381166]
[1730839199779,4.896,2435.1,2434.5,3.28341166]
[1730839199977,1.6089709,2434.8,2434.5,3.28341166]
[1730839200778,2.0197209,2434.7,2434.5,2.56381166]
[1730839201283,0.7273,2434.6,2434.5,2.56381166]
[1730839202578,0.7273,2434.6,2434.2,3.9274]
[1730839202579,3.9351,2434.6,2434.2,3.9274]
[1730839202770,1.6089709,2434.5,2434.1,2.56381166]
[1730839202976,3.9351,2434.6,2433.9,2.56381166]
[1730839202977,1.6089709,2434.3,2433.9,2.56381166]
[1730839203181,5.2276009,2434.3,2433.9,2.56381166]
[1730839203379,0.41083,2434.2,2433.9,2.56381166]
[1730839203579,4.8167709,2434.3,2434.1,2.56381166]
[1730839203975,1.6089709,2434.2,2434.1,2.56381166]
[1730839204185,1.6089709,2434.2,2434.1,2.97466166]
[1730839204381,1.6089709,2434.2,2434.1,6.67181166]
[1730839204585,1.6089709,2434.2,2434.1,2.56381166]
[1730839204783,1.6089709,2434.2,2433.9,2.56381166]
[1730839204784,0.41086,2434.1,2433.9,2.56381166]
[1730839204984,0.7412,2434.0,2433.9,2.56381166]
[1730839205676,0.7412,2434.0,2433.7,2.56381166]
[1730839206079,0.7412,2434.0,2433.8,0.41089]
[1730839206383,0.7412,2434.0,2433.7,2.97471166]
[1730839206585,2.0197609,2434.5,2434.0,0.41086]
[1730839206778,3.9781,2434.4,2434.2,2.56381166]
[1730839206979,4.38891,2434.4,2434.2,2.56381166]
[1730839208992,0.41081,2434.3,2433.9,2.56381166]
[1730839209194,3.9781,2434.4,2433.9,2.56381166]
[1730839209398,4.3889,2434.4,2434.0,0.41085]
[1730839210393,4.3889,2434.4,2434.1,0.41084]
[1730839210580,3.9781,2434.4,2434.3,0.41081]
[1730839210787,3.2078,2434.4,2434.3,1.16951]
[1730839211092,1.90815,2434.7,2434.6,0.41076]
[1730839211093,0.7723,2434.7,2434.6,0.41076]
[1730839211282,0.7723,2434.7,2434.6,2.97457166]
[1730839211990,3.6185,2435.0,2434.6,2.56381166]
[1730839212179,0.41072,2434.9,2434.6,2.97456166]
[1730839212890,0.41073,2434.8,2434.6,2.56381166]
[1730839213086,0.41073,2434.8,2434.6,2.97457166]
[1730839213291,0.41078,2434.5,2434.3,5.77161166]
[1730839213482,0.41079,2434.4,2434.1,2.56381166]
[1730839213679,3.9929,2434.7,2434.1,2.56381166]
[1730839213680,0.41082,2434.3,2434.1,2.56381166]
[1730839213885,0.7504,2434.6,2434.1,2.56381166]
[1730839214090,0.7504,2434.6,2434.0,0.7229]
[1730839214091,1.19593,2434.2,2434.0,0.7229]
[1730839214281,1.19593,2434.2,2433.8,4.07381166]
[1730839214282,0.7851,2434.2,2433.8,3.32341166]
[1730839214483,1.19593,2434.2,2433.9,0.41087]
[1730839214684,0.7851,2434.2,2434.0,0.41086]
[1730839214890,0.7851,2434.2,2433.8,3.32341166]
[1730839215092,1.19593,2434.2,2433.9,0.41087]
[1730839215281,0.7851,2434.2,2433.9,0.41087]
[1730839215486,0.7851,2434.2,2434.0,0.41085]
[1730839215888,1.19593,2434.2,2433.9,0.41087]
[1730839216086,0.41087,2434.0,2433.8,3.32341166]
[1730839216389,1.19593,2434.2,2433.9,0.41087]
[1730839216998,0.41085,2434.1,2433.8,3.73430166]
[1730839218095,1.12585,2434.1,2433.8,2.97470166]
[1730839218796,0.41088,2434.0,2433.8,2.56381166]
[1730839219099,1.12585,2434.1,2433.8,2.97470166]
[1730839219902,0.715,2434.1,2433.8,2.56381166]
[1730839220603,0.41086,2434.0,2433.8,2.97470166]
[1730839220899,3.2078,2434.0,2433.0,3.2078]
[1730839221203,0.41097,2433.4,2433.0,3.61882]
[1730839221397,0.41097,2433.4,2433.0,0.41102]
[1730839221603,0.7685,2433.3,2433.0,0.41102]
[1730839222493,0.7685,2433.3,2433.1,2.97482166]
[1730839223607,0.7685,2433.3,2433.1,2.56381166]
[1730839223799,0.7685,2433.3,2433.1,2.97482166]
[1730839224101,0.7685,2433.3,2433.2,0.411]
[1730839224294,40.8,2433.4,2433.3,0.41098]
[1730839224498,1.93093,2433.6,2433.3,0.41098]
[1730839224700,1.52,2433.6,2433.1,2.97482166]
[1730839225005,0.41097,2433.4,2433.1,2.97482166]
[1730839225300,1.52,2433.6,2433.1,2.56381166]
[1730839225597,1.93094,2433.6,2433.3,0.41097]
[1730839226301,1.52,2433.6,2433.1,2.56381166]
[1730839226497,0.41092,2433.7,2433.4,2.97477166]
[1730839226705,0.4109,2433.8,2433.5,0.41094]
[1730839226900,0.5674,2433.9,2433.4,2.56381166]
[1730839227096,0.41092,2433.7,2433.4,2.97477166]
[1730839227297,0.5674,2433.9,2433.4,2.56381166]
[1730839227604,0.5674,2433.9,2433.8,0.4109]
[1730839228106,3.2078,2434.0,2433.6,3.84861166]
[1730839228406,3.2078,2434.0,2433.9,0.41088]
[1730839228604,3.2078,2434.0,2433.9,2.97469166]
[1730839229601,3.2078,2434.0,2433.9,0.41088]
[1730839229995,0.7823,2434.1,2433.6,3.84861166]
[1730839230304,0.7823,2434.1,2434.0,0.41086]
[1730839230894,0.607,2434.2,2433.6,4.03093651]
[1730839231401,1.01784,2434.2,2434.0,0.41085]
[1730839231703,3.2078,2434.4,2434.3,0.41081]
[1730839232297,3.2078,2434.4,2434.2,0.5692]
[1730839232505,0.41082,2434.3,2433.9,3.13301166]
[1730839232701,3.2078,2434.4,2434.3,0.41081]
[1730839233806,1.2106,2434.5,2434.1,5.77161166]
[1730839233999,0.4108,2434.4,2434.2,0.41082]
[1730839234199,1.2106,2434.5,2434.1,5.77161166]
[1730839234400,1.62139,2434.5,2434.3,0.41081]
[1730839234806,1.2106,2434.5,2433.9,3.13301166]
[1730839235013,3.2078,2434.4,2433.6,7.05641166]
[1730839235200,3.7782,2434.4,2433.6,7.05641166]
[1730839235403,0.41083,2434.2,2433.9,0.41087]
[1730839236305,0.41083,2434.2,2433.9,0.41086]
[1730839236498,4.189,2434.4,2433.9,2.56381166]
[1730839236694,1.2106,2434.5,2433.9,5.77161166]
[1730839236894,3.2078,2434.4,2433.7,3.17011166]
[1730839237108,0.41084,2434.2,2433.9,0.41088]
[1730839237405,0.41083,2434.2,2433.9,0.41088]
[1730839237807,0.41082,2434.3,2433.7,3.17011166]
[1730839238002,44.0078,2434.4,2433.7,3.17011166]
[1730839238210,0.41084,2434.2,2433.7,3.17011166]
[1730839238509,44.0078,2434.4,2434.0,0.41085]
[1730839238703,0.41083,2434.2,2433.7,3.17011166]
[1730839238904,44.0078,2434.4,2433.7,3.17011166]
[1730839239307,0.41082,2434.3,2434.0,0.41085]
[1730839239798,44.0078,2434.4,2433.7,3.17011166]
[1730839240003,44.0078,2434.4,2434.2,0.41081]
[1730839240503,44.4186,2434.4,2434.1,0.41084]
[1730839240704,44.0078,2434.4,2434.1,0.41084]
[1730839240899,0.41084,2434.2,2433.9,0.41087]
[1730839241308,0.41086,2434.0,2433.7,1.0172]
[1730839241615,4.108,2434.1,2433.8,0.41089]
[1730839241616,0.41086,2434.1,2433.8,0.41089]
[1730839241800,0.5937,2434.0,2433.7,0.6063]
[1730839242001,0.5937,2434.0,2433.9,0.41088]
[1730839243113,0.5937,2434.0,2433.6,4.34572]
[1730839243300,0.5521,2433.9,2433.6,3.61872]
[1730839243506,0.96299,2433.9,2433.6,0.41092]
[1730839243803,0.5521,2433.9,2433.4,2.56381166]
[1730839244008,0.41092,2433.7,2433.4,2.97476166]
[1730839244208,3.2078,2433.8,2433.4,0.41095]
[1730839244511,0.41092,2433.7,2433.4,0.41096]
[1730839244710,0.41092,2433.7,2433.3,0.6016]
[1730839245212,0.41092,2433.7,2433.5,0.41094]
[1730839245410,2.01038346,2433.7,2433.5,0.41094]
[1730839246409,1.59946346,2433.7,2433.3,1.62904]
[1730839246714,1.59946346,2433.7,2433.6,0.41093]
[1730839247105,4.80726346,2433.8,2433.4,2.56381166]
[1730839247305,4.80726346,2433.8,2433.7,0.41091]
[1730839247815,3.09563907,2433.9,2433.7,0.4109]
[1730839248001,1.6120597,2433.8,2433.7,0.4109]
[1730839248617,0.41091,2433.7,2433.5,0.41094]
[1730839248909,1.61251049,2433.7,2433.6,0.41093]
[1730839250205,2.54355907,2433.8,2433.6,0.41093]
[1730839250407,0.41091,2433.7,2433.6,0.41093]
[1730839250612,2.54356907,2433.8,2433.6,0.41093]
[1730839251316,2.13265907,2433.8,2433.3,0.6016]
[1730839251508,1.61235359,2433.5,2433.3,0.6016]
[1730839251808,1.61235359,2433.5,2433.4,0.41095]
[1730839252307,1.61235359,2433.6,2433.3,0.6016]
[1730839252507,1.61235359,2433.6,2433.5,0.41095]
[1730839255806,0.41093,2433.6,2433.5,0.41095]
[1730839256305,2.54357907,2433.7,2433.6,0.41093]
[1730839256814,2.13265907,2433.7,2433.6,0.41093]
[1730839257015,2.54356907,2433.7,2433.6,0.41093]
[1730839257402,2.13265907,2433.7,2433.6,0.41093]
[1730839258512,2.15074316,2433.7,2433.6,0.41093]
[1730839259417,2.66582384,2433.8,2433.6,0.41093]
[1730839259617,0.41091,2433.7,2433.6,0.41093]
[1730839259809,0.41094,2433.6,2433.4,0.41095]
[1730839260007,0.5689,2433.5,2433.4,0.41095]
[1730839260204,2.72033629,2433.5,2433.4,0.41095]
[1730839260607,2.72033629,2433.5,2433.2,3.2078]
[1730839260820,2.15143629,2433.4,2433.2,3.2078]
[1730839261013,2.15143629,2433.4,2433.3,0.98578]
[1730839261814,0.5689,2433.5,2433.4,0.41096]
[1730839262319,0.5689,2433.5,2433.4,4.52056]
[1730839262509,2.15143465,2433.6,2433.4,6.67341166]
[1730839262709,2.15143465,2433.6,2433.5,7.72835]
[1730839262913,2.15143465,2433.7,2433.6,0.41093]
[1730839263119,2.15143465,2433.7,2433.6,3.54654166]
[1730839263419,1.61333721,2433.9,2433.6,7.24441166]
[1730839263614,1.61333721,2433.9,2433.8,3.6187]
[1730839263615,1.61319275,2433.9,2433.8,3.6187]
[1730839264106,1.61319275,2433.9,2433.8,8.2909]
[1730839265817,1.61319275,2434.1,2433.9,0.41088]
[1730839266018,2.15143465,2434.1,2433.9,2.56381166]
[1730839266209,2.15143465,2434.1,2433.8,3.7712]
[1730839266517,2.66582384,2434.2,2433.8,3.61869]
[1730839266518,0.41088,2433.9,2433.8,3.61869]
[1730839266712,0.41088,2433.9,2433.5,0.76594844]
[1730839266713,2.15143465,2433.9,2433.5,3.2078]
[1730839267019,2.56208708,2433.6,2433.5,3.2078]
[1730839267522,2.15115708,2433.6,2433.5,3.61875]
[1730839268112,2.56208708,2433.6,2433.5,3.2078]
[1730839268411,2.15115708,2433.6,2433.5,3.61875]
[1730839268609,3.84272384,2433.8,2433.6,0.41093]
[1730839268610,2.15115708,2433.7,2433.6,0.41093]
[1730839268816,3.32805708,2433.8,2433.6,0.614]
[1730839269011,2.76655708,2433.8,2433.7,7.08352166]
[1730839269218,2.15115708,2433.9,2433.8,0.4109]
[1730839269409,2.75825708,2434.1,2433.8,3.2078]
[1730839269620,1.6131948,2433.9,2433.8,0.4109]
[1730839270716,1.6131948,2433.9,2433.8,4.5197]
[1730839270915,2.15115708,2434.0,2433.8,4.1088]
[1730839271126,2.15115708,2434.0,2433.9,0.41088]
[1730839273319,2.15115708,2434.0,2433.8,3.2078]
[1730839273515,2.15115708,2434.0,2433.8,3.6187]
[1730839273516,2.56202708,2434.0,2433.8,3.6187]
[1730839273720,2.15115708,2434.0,2433.9,0.41088]
[1730839274023,0.41088,2433.9,2433.8,3.2078]
[1730839274224,0.41088,2433.9,2433.5,3.61873]
[1730839274225,2.66582384,2433.9,2433.5,3.61873]
[1730839274424,1.6140327,2433.6,2433.5,3.61873]
[1730839274925,2.1976327,2433.6,2433.5,7.72833]
[1730839275121,1.6140327,2433.7,2433.5,7.3174]
[1730839275323,1.61399021,2433.6,2433.5,7.8871]
[1730839275623,1.61399021,2433.7,2433.6,0.41093]
[1730839276015,1.61399021,2433.7,2433.6,4.51973]
[1730839277825,1.61393599,2433.7,2433.6,4.51973]
[1730839278025,1.61402636,2433.7,2433.6,0.41093]
[1730839278229,2.1520436,2433.8,2433.5,3.2078]
[1730839278434,1.61405137,2433.6,2433.5,3.61873]
[1730839278629,0.41093,2433.6,2433.5,3.2078]
[1730839278929,2.5629736,2433.6,2433.5,3.2078]
[1730839279232,2.1520436,2433.6,2433.5,3.61875]
[1730839279525,2.5629736,2433.6,2433.5,3.2078]
[1730839279725,2.5636019,2433.6,2433.5,3.2078]
[1730839279933,0.41093,2433.6,2433.5,3.2078]
[1730839280124,3.25002384,2433.7,2433.5,3.61875]
[1730839280331,3.66094384,2433.7,2433.5,3.61875]
[1730839281633,3.25002384,2433.7,2433.6,0.41093]
[1730839282431,0.5842,2433.7,2433.6,0.41093]
[1730839282637,0.41096,2433.5,2433.2,0.411]
[1730839282831,2.15301184,2433.3,2433.2,0.411]
[1730839283234,2.76201184,2433.3,2433.2,0.411]
[1730839283629,2.74351184,2433.4,2433.3,0.41098]
[1730839283834,2.74351184,2433.4,2433.3,2.97479166]
[1730839284031,2.74351184,2433.4,2433.3,3.51549166]
[1730839284236,2.20508071,2433.4,2433.3,3.51549166]
[1730839284536,2.20510633,2433.4,2433.3,3.51549166]
[1730839285432,0.5905,2433.4,2433.3,3.51549166]